fUSD/lending_fUSD_20260127
["ID","MTS","AMOUNT","RATE_DAILY","PERIOD"]
[403734690,1769518242576,-1403.279,0.00039301,54]
[403734691,1769518242586,-465.0,0.00039342,60]
[403734692,1769518242595,-465.0,0.00039397,60]
[403734693,1769518242604,-465.0,0.00039451,60]
[403734694,1769518242616,-465.5995176,0.00039506,60]
[403734695,1769518242627,-615.0,0.00039684,2]
[403734696,1769518242635,-6570.0,0.00039684,2]
[403734697,1769518242645,-7466.00160714,0.00040145,15]
[403734698,1769518242654,-170.52019578,0.00040161,68]
[403734699,1769518242663,-798.0,0.00041096,120]
[403734700,1769518242672,-798.2,0.00041315,120]
[403734701,1769518242681,-225.0,0.000415,120]
[403734702,1769518242692,-170.52019578,0.00041522,72]
[403734703,1769518242701,-400.0,0.00041639,5]
[403734704,1769518242711,-793.64,0.00041644,120]
[403734705,1769518242723,-500.0,0.00041701,60]
[403734706,1769518242732,-500.0,0.00041701,60]
[403734708,1769518242741,-500.0,0.00041701,60]
[403734709,1769518242750,-1361.2,0.00041742,120]
[403734710,1769518242759,-2000.0,0.000418,2]
[403734711,1769518242769,-500.0,0.00042,120]
[403734712,1769518242778,-8910.0,0.00042033,30]
[403734713,1769518242787,-914.58949328,0.00042045,7]
[403734714,1769518242798,-2909.583601,0.00042354,7]
[403734715,1769518242807,-1474.110486,0.00042354,7]
[403734716,1769518242816,-500.0,0.00042438,120]
[403734717,1769518242825,-8910.0,0.00042467,30]
[403734718,1769518242834,-500.0,0.000425,120]
[403734720,1769518242843,-500.0,0.00042575,120]
[403734721,1769518242853,-615.0,0.00042684,2]
[403734722,1769518242862,-6570.0,0.00042684,2]
[403734725,1769518242872,-500.0,0.00042712,120]
[403734726,1769518242881,-1000.0,0.0004274,30]
[403734727,1769518242890,-500.0,0.00042797,60]
[403734728,1769518242899,-500.0,0.00042797,60]
[403734729,1769518242908,-500.0,0.00042797,60]
[403734730,1769518242918,-500.0,0.00042849,120]
[403734732,1769518242927,-1666.66666,0.0004287,120]
[403734733,1769518242936,-1666.66667,0.0004287,120]
[403734734,1769518242945,-1666.66667,0.0004287,120]
[403734735,1769518242954,-1666.66667,0.0004287,120]
[403734736,1769518242964,-1666.66666,0.0004287,120]
[403734737,1769518242973,-170.52019578,0.00042884,90]
[403734738,1769518242982,-196.34217884,0.00042886,9]
[403734739,1769518242993,-8910.0,0.000429,30]
[403734740,1769518243002,-207.25426088,0.000429,19]
[403734741,1769518243011,-500.0,0.00042986,120]
[403734742,1769518243021,-200.0,0.00043,120]
[403734743,1769518243030,-2000.0,0.00043,45]
[403734744,1769518243039,-2000.0,0.00043,45]
[403734745,1769518243048,-2000.0,0.00043,45]
[403734746,1769518243058,-2000.0,0.00043,45]
[403734747,1769518243067,-2000.0,0.00043,45]
[403734748,1769518243079,-2000.0,0.00043,45]
[403734749,1769518243094,-2000.0,0.00043,45]
[403734750,1769518243104,-2000.0,0.00043,45]
[403734751,1769518243113,-2000.0,0.00043,45]
[403734752,1769518243122,-2000.0,0.00043,45]
[403734753,1769518243132,-2000.0,0.00043,45]
[403734754,1769518243142,-2000.0,0.00043,45]
[403734755,1769518243151,-2000.0,0.00043,45]
[403734756,1769518243162,-2000.0,0.00043,45]
[403734757,1769518243171,-2000.0,0.00043,45]
[403734758,1769518243181,-2000.0,0.00043,45]
[403734759,1769518243190,-2000.0,0.00043,60]
[403734760,1769518243200,-2000.0,0.00043,60]
[403734761,1769518243210,-2000.0,0.00043,60]
[403734762,1769518243219,-2000.0,0.00043,60]
[403734763,1769518243229,-2000.0,0.00043,60]
[403734764,1769518243239,-2000.0,0.00043,60]
[403734765,1769518243249,-2000.0,0.00043,30]
[403734766,1769518243259,-2000.0,0.00043,30]
[403734767,1769518243269,-2000.0,0.00043,30]
[403734768,1769518243278,-2000.0,0.00043,30]
[403734769,1769518243288,-2000.0,0.00043,30]
[403734770,1769518243297,-560.42093019,0.00043,30]
[403734771,1769518243307,-157.16,0.00043,14]
[403734772,1769518243316,-500.0,0.00043,120]
[403734773,1769518243326,-1000.0,0.00043014,30]
[403734774,1769518243335,-179.10380509,0.000431,120]
[403734775,1769518243345,-174.86897692,0.000431,120]
[403734776,1769518243354,-750.88148064,0.000431,120]
[403734777,1769518243363,-1847.61806955,0.000431,120]
[403734778,1769518243372,-500.0,0.00043123,120]
[403734779,1769518243381,-2000.0,0.00043128,3]
[403734780,1769518243391,-4419.0,0.0004313,7]
[403734781,1769518243400,-200.0,0.0004313,120]
[403734782,1769518243409,-245475.95233569,0.00043141,120]
[403734783,1769518243441,-554.44139892,0.00043141,120]
[403734784,1769518243609,-250.0,0.00020536,2]
[403734786,1769518243619,-4063.91422921,0.00033948,2]
[403734787,1769518243628,-9524.60626539,0.00043141,120]
[403734788,1769518243637,-150.0,0.00043199,20]
[403734789,1769518243646,-7466.00160714,0.000432,15]
[403734790,1769518243656,-240.18345361,0.000432,120]
[403734791,1769518243665,-172.11849137,0.000432,120]
[403734793,1769518243674,-222.17019637,0.000432,2]
[403734794,1769518243683,-436.33762203,0.000432,2]
[403734796,1769518243692,-191.3382211,0.000432,8]
[403734798,1769518243701,-222.17019637,0.00043227,2]
[403734799,1769518243710,-436.33762202,0.00043227,2]
[403734800,1769518243720,-800.0,0.00043241,16]
[403734801,1769518243731,-800.0,0.00043241,16]
[403734802,1769518243740,-800.0,0.00043241,16]
[403734803,1769518243748,-800.0,0.00043241,16]
[403734804,1769518243757,-24.63340599,0.00043241,16]
[403734805,1769518244729,-0.77711559,0.00043241,16]
[403734806,1769518246274,-774.58947842,0.00043241,16]
[403734807,1769518246283,-800.0,0.00043241,16]
[403734808,1769518246293,-800.0,0.00043241,16]
[403734809,1769518246303,-800.0,0.00043241,16]
[403734810,1769518246313,-196.34217884,0.00043254,11]
[403734811,1769518246322,-51.93834274,0.00043254,2]
[403734812,1769518246341,-170.23185363,0.00043254,2]
[403734813,1769518246350,-436.33762202,0.00043254,2]
[403734814,1769518246359,-546.4075,0.0004326,120]
[403734815,1769518246368,-150.0,0.00043273,60]
[403734816,1769518246378,-150.0,0.00043273,2]
[403734817,1769518246387,-1000.0,0.00043288,30]
[403734818,1769518246396,-10032.79271993,0.000433,120]
[403734819,1769518246407,-39132.37997658,0.000433,120]
[403734932,1769518675646,202.68824034,0.00015044,2]
[403734934,1769518677461,161.87975661,0.00015044,2]
[403734935,1769518678520,150.11107265,0.00015044,2]
[403734984,1769518903953,-242.53311049,0.00015332,2]
[403734987,1769518909331,-193.14543608,0.00015332,2]
[403734988,1769518912547,-231.36212261,0.00015332,2]
[403734989,1769518917062,-261.92123502,0.00015332,2]
[403734991,1769518919824,-282.81899234,0.00015332,2]
[403734992,1769518921841,-416.00975051,0.00015332,2]
[403734996,1769518924469,-147.03035295,0.00015332,2]
[403734997,1769518924491,-160.64614077,0.00015332,2]
[403735027,1769519119282,1050.88046112,0.00015644,5]
[403735048,1769519413667,-16.26085923,0.00015332,2]
[403735049,1769519413690,-204.59207489,0.00015332,2]
[403735085,1769519432440,-73.40792511,0.00015332,2]
[403735087,1769519432449,-221.23207489,0.00015385,2]
[403735090,1769519432464,-28.76792511,0.00015385,2]
[403735092,1769519432474,-200.0,0.00015444,2]
[403735094,1769519432483,-1200.0,0.00015444,2]
[403735096,1769519432492,-300.0,0.00015444,2]
[403735098,1769519432502,-3899.83188487,0.00015445,2]
[403735100,1769519432511,-7214.07199429,0.00015445,2]
[403735102,1769519432520,-707.0,0.00015543,2]
[403735104,1769519432529,-150.0,0.00015543,2]
[403735106,1769519432539,-180.00434459,0.00015543,2]
[403735108,1769519432548,-9028.25848058,0.00015544,2]
[403735110,1769519432559,-72762.20327218,0.00015544,2]
[403735113,1769519432573,-21943.76198024,0.00015544,2]
[403735176,1769519437991,-999.0,0.00015544,2]
[403735177,1769519438049,-1800.0,0.00015544,2]
[403735178,1769519438159,-3367.06848212,0.00015544,2]
[403735367,1769519440148,-482048.95235356,0.00015544,2]
[403735445,1769519440842,-1.7e-07,0.00015544,2]
[403735694,1769519443222,-165.43580283,0.00015543,2]
[403735696,1769519443231,-381.02987722,0.00015544,2]
[403735699,1769519443245,-561.5669004,0.00015544,2]
[403735702,1769519443264,-1187.06083542,0.00015544,2]
[403735704,1769519443275,-405921.09781811,0.00015544,2]
[403735706,1769519443291,-1592.10936528,0.00015545,2]
[403735708,1769519443302,-173.07099154,0.00015545,2]
[403735710,1769519443311,-4162.1972,0.00015545,2]
[403735712,1769519443320,-419.0281,0.00015545,2]
[403735714,1769519443330,-2500.0,0.00015545,2]
[403735716,1769519443339,-450.1833,0.00015545,2]
[403735718,1769519443348,-500.0,0.00015644,2]
[403735720,1769519443357,-492.59366018,0.00015644,2]
[403735722,1769519443367,-1000.0,0.00015645,2]
[403735724,1769519443377,-151.0,0.00015825,2]
[403735726,1769519443386,-300.0,0.00016,2]
[403735728,1769519443395,-1800.0,0.000163,2]
[403735730,1769519443403,-500.0,0.00016373,2]
[403735732,1769519443413,-501.58952818,0.00016373,2]
[403735734,1769519443422,-502.95752889,0.00016373,2]
[403735736,1769519443431,-166.66,0.00016422,2]
[403735738,1769519443440,-500.0,0.00016438,2]
[403735740,1769519443450,-503.42890752,0.00016438,2]
[403735742,1769519443460,-995.31,0.00016438,2]
[403735744,1769519443469,-688.22169095,0.00016438,2]
[403735746,1769519443481,-307.08830905,0.00016438,2]
[403735748,1769519443490,-995.31,0.00016438,2]
[403735750,1769519443499,-995.31,0.00016438,2]
[403735752,1769519443508,-155.76,0.00016497,2]
[403735754,1769519443518,-155.76,0.00016579,2]
[403735756,1769519443527,-155.76,0.00016661,2]
[403735758,1769519443536,-155.76,0.00016744,2]
[403735760,1769519443545,-623.56332717,0.00016777,2]
[403735762,1769519443555,-95.52665946,0.00016826,2]
[403735765,1769519443571,-60.23334054,0.00016826,2]
[403735767,1769519443580,-195.0,0.00016865,2]
[403735769,1769519443589,-300.0,0.00016865,2]
[403735771,1769519443599,-195.0,0.00016865,2]
[403735773,1769519443607,-250.0,0.00016865,2]
[403735775,1769519443617,-195.0,0.00016865,2]
[403735777,1769519443626,-231.36212261,0.00016865,2]
[403735779,1769519443635,-284.86539267,0.00016865,2]
[403735781,1769519443644,-195.0,0.00016865,2]
[403735783,1769519443654,-491.93123502,0.00016865,2]
[403735785,1769519443663,-195.0,0.00016865,2]
[403735787,1769519443672,-2175.36706716,0.000169,2]
[403735905,1769519446040,-248.48516942,0.00015344,2]
[403735906,1769519446050,-60.14802458,0.000169,2]
[403735907,1769519446075,-2500.83297239,0.000169,2]
[403735908,1769519446099,-1476.51279538,0.000169,2]
[403735909,1769519446212,-676.87939562,0.000169,2]
[403735990,1769519838548,1119.26215639,0.00015543,5]
[403736045,1769520092676,1419.857,0.00015233,2]
[403736046,1769520092833,178.891,0.00015233,2]
[403736050,1769520103875,1000.0,0.00021,30]
[403736062,1769520151079,151.0,0.00015,2]
[403736084,1769520514992,41427.98863794,0.00016,4]
[403736087,1769520595599,566.98,0.00014894,2]
[403736096,1769520632106,-165.6567796,0.00015344,2]
[403736097,1769520632117,-195.0,0.00015344,2]
[403736098,1769520632129,-370.73177233,0.00015344,2]
[403736099,1769520632217,-139.4819089,0.00015344,2]
[403736101,1769520632226,-201.18477612,0.00015344,2]
[403736102,1769520632235,-250.0,0.00015344,2]
[403736103,1769520632244,-300.0,0.00015345,2]
[403736104,1769520632253,-1393.09569462,0.00015345,2]
[403736105,1769520632262,-173.07099152,0.00015345,2]
[403736106,1769520632271,-451.08745799,0.00015345,2]
[403736107,1769520632280,-195.0,0.00015345,2]
[403736108,1769520632289,-277.36496974,0.00015349,2]
[403736109,1769520632299,-250.0,0.00015352,2]
[403736110,1769520632308,-165.6567796,0.00015395,2]
[403736111,1769520632317,-1200.0,0.00015443,2]
[403736112,1769520632326,-300.0,0.00015443,2]
[403736114,1769520632336,-300.0,0.00015443,2]
[403736116,1769520632346,-186619.79688586,0.00015444,2]
[403736119,1769520632357,-19937.5471648,0.00015444,2]
[403736121,1769520632367,-60623.2750477,0.00015444,2]
[403736123,1769520632379,-26152.21879049,0.00015444,2]
[403736125,1769520632389,-547.77308168,0.00015444,2]
[403736161,1769520638615,-500.0,0.00015443,2]
[403736163,1769520638625,-212.50037538,0.00015443,2]
[403736165,1769520638635,-324.69206943,0.00015443,2]
[403736167,1769520638645,-2568.4424937,0.00015444,2]
[403736169,1769520638657,-2969.80208559,0.00015444,2]
[403736172,1769520638673,-8418.5749629,0.00015444,2]
[403736317,1769520640208,-7089.32551755,0.00015444,2]
[403736319,1769520640222,-685073.24396973,0.00015444,2]
[403736322,1769520640237,-189.01188501,0.00015445,2]
[403736324,1769520640246,-6492.66479487,0.00015445,2]
[403736326,1769520640257,-165.6567796,0.00015445,2]
[403736328,1769520640267,-3638.9894524,0.00015445,2]
[403736330,1769520640275,-150.00139282,0.00015527,2]
[403736332,1769520640285,-883.71285703,0.0001554,2]
[403736334,1769520640294,-1000.0,0.00015545,2]
[403736336,1769520640303,-151.0,0.00015577,2]
[403736338,1769520640313,-500.0,0.00015644,2]
[403736340,1769520640322,-500.0,0.00015644,2]
[403736342,1769520640331,-500.0,0.00015644,2]
[403736344,1769520640340,-500.0,0.00015644,2]
[403736346,1769520640349,-6492.66479483,0.00015718,2]
[403736348,1769520640359,-3638.98945237,0.00015718,2]
[403736350,1769520640368,-150.0,0.00015776,2]
[403736352,1769520640378,-557.89,0.00015792,2]
[403736354,1769520640387,-13009.53,0.00015817,2]
[403736356,1769520640396,-400.0,0.00015918,2]
[403736358,1769520640405,-6492.66479483,0.00015991,2]
[403736360,1769520640414,-3638.98945237,0.00015991,2]
[403736362,1769520640423,-5949.46759797,0.00016,2]
[403736364,1769520640435,-5000.00397812,0.000162,5]
[403736366,1769520640444,-6492.66479483,0.00016263,2]
[403736368,1769520640452,-3638.98945237,0.00016263,2]
[403736370,1769520640462,-200.0,0.0001634,2]
[403736372,1769520640471,-217.113082,0.00016373,2]
[403736374,1769520640481,-322.89025,0.00016373,2]
[403736376,1769520640490,-500.0,0.00016438,2]
[403736378,1769520640498,-500.0,0.00016438,2]
[403736380,1769520640508,-500.0,0.00016438,2]
[403736382,1769520640517,-500.0,0.00016438,2]
[403736384,1769520640526,-500.0,0.00016438,2]
[403736386,1769520640536,-500.0,0.00016438,2]
[403736388,1769520640546,-500.0,0.00016438,2]
[403736390,1769520640555,-500.0,0.00016438,2]
[403736392,1769520640564,-500.0,0.00016438,2]
[403736394,1769520640574,-500.0,0.00016438,2]
[403736396,1769520640584,-500.0,0.00016438,2]
[403736398,1769520640593,-468.5,0.00016438,2]
[403736400,1769520640603,-500.0,0.00016438,2]
[403736402,1769520640612,-500.0,0.00016438,2]
[403736404,1769520640621,-500.0,0.00016438,2]
[403736406,1769520640630,-500.0,0.00016438,2]
[403736408,1769520640639,-227.77415091,0.00016438,2]
[403736410,1769520640649,-500.0,0.00016438,2]
[403736412,1769520640658,-500.0,0.00016438,2]
[403736414,1769520640667,-500.2094616,0.00016444,2]
[403736416,1769520640677,-881.0,0.00016501,2]
[403736418,1769520640686,-400.0,0.00016515,2]
[403736420,1769520640696,-6492.66479483,0.00016536,2]
[403736422,1769520640706,-3638.98945237,0.00016536,2]
[403736424,1769520640715,-451.08745797,0.00016623,2]
[403736426,1769520640725,-1184.95080347,0.00016639,2]
[403736428,1769520640734,-6492.66479483,0.00016809,2]
[403736430,1769520640743,-3638.98945237,0.00016809,2]
[403736432,1769520640752,-195.0,0.00016878,2]
[403736434,1769520640761,-195.0,0.00016878,2]
[403736436,1769520640770,-300.0,0.00016878,2]
[403736439,1769520640779,-193.0,0.00016878,2]
[403736441,1769520640789,-250.0,0.00016878,2]
[403736443,1769520640800,-600.0,0.00016878,2]
[403736445,1769520640810,-2500.0,0.00016878,2]
[403736447,1769520640819,-200.0,0.00016878,2]
[403736449,1769520640828,-195.0,0.00016878,2]
[403736452,1769520640838,-500.0,0.00016878,2]
[403736454,1769520640847,-300.0,0.00016882,2]
[403736456,1769520640856,-150.00139282,0.00016894,2]
[403736458,1769520640865,-420.0,0.00016894,2]
[403736460,1769520640874,-7873.44993874,0.000169,2]
[403736462,1769520640883,-155.76,0.00016909,2]
[403736502,1769520641226,-166.66,0.00016964,2]
[403736504,1769520641236,-1680.0,0.00016979,2]
[403736506,1769520641245,-155.76,0.00016991,2]
[403736508,1769520641254,-8387.92899839,0.00017,2]
[403736510,1769520641263,-250.0,0.00017,2]
[403736512,1769520641272,-6492.66479483,0.00017082,2]
[403736514,1769520641281,-3638.98945237,0.00017082,2]
[403736516,1769520641290,-400.0,0.00017112,2]
[403736518,1769520641299,-1958.0,0.000173,3]
[403736520,1769520641309,-266.66434274,0.00017302,2]
[403736522,1769520641319,-398.91390859,0.00017302,2]
[403736524,1769520641328,-539.7381,0.00017302,2]
[403736526,1769520641337,-6492.66479483,0.00017354,2]
[403736528,1769520641346,-3638.98945237,0.00017354,2]
[403736530,1769520641355,-500.0,0.00017474,2]
[403736532,1769520641365,-1605.18774302,0.000175,2]
[403736534,1769520641375,-166.66,0.00017506,2]
[403736536,1769520641384,-6492.66479483,0.00017627,2]
[403736538,1769520641393,-3638.98945237,0.00017627,2]
[403736540,1769520641402,-400.0,0.00017709,2]
[403736542,1769520641412,-6492.66479483,0.000179,2]
[403736544,1769520641420,-3638.98945237,0.000179,2]
[403736546,1769520641429,-451.08745797,0.000179,2]
[403736548,1769520641438,-150.0,0.00017973,2]
[403736550,1769520641447,-150.0,0.00017973,2]
[403736552,1769520641457,-222.33903402,0.0001799,2]
[403736554,1769520641466,-500.0,0.00017999,2]
[403736555,1769520641475,-500.0,0.00017999,2]
[403736557,1769520641484,-500.0,0.00017999,2]
[403736559,1769520641494,-277.5,0.00017999,2]
[403736562,1769520641505,-150.34858054,0.00017999,2]
[403736564,1769520641514,-2651292.41686715,0.00018,2]
[403736566,1769520641526,-653.76080498,0.00018,2]
[403736569,1769520641541,-244787.71621439,0.00018,2]
[403736571,1769520641552,-177533.12685951,0.00018,2]
[403736573,1769520641563,-570.39513047,0.00018,2]
[403736575,1769520641577,-843.92649322,0.00018,2]
[403736578,1769520641588,-876.81977695,0.00018,2]
[403736580,1769520641599,-422.28753396,0.00018,2]
[403736582,1769520641610,-2280.9972858,0.00018,2]
[403736584,1769520641621,-1956.161805,0.00018,2]
[403736586,1769520641632,-21041.45799257,0.00018,2]
[403736588,1769520641643,-4348.12435315,0.00018,2]
[403736591,1769520641654,-534.0,0.00018,2]
[403736743,1769520643278,-1361.07983159,0.00018,2]
[403737026,1769520646239,-11512.3623444,0.00018,2]
[403737032,1769520646298,-369.60010714,0.00018,2]
[403737034,1769520646312,-2525.57221363,0.00018,2]
[403737057,1769520646520,-974.46124942,0.00018,2]
[403737060,1769520646531,-545.61220327,0.00018,2]
[403737424,1769520692753,178.891,0.00015135,2]
[403737425,1769520693853,1135.885,0.00015135,2]
[403737429,1769521077952,150.0,0.000153,2]
[403737431,1769521102063,161.60504585,0.00015243,2]
[403737432,1769521108239,161.60504584,0.00015294,2]
[403737433,1769521186445,157.11,0.00015157,2]
[403737434,1769521233837,210.22,0.00015056,2]
[403737435,1769521242836,340.37,0.00015103,2]
[403737436,1769521299378,214.17,0.00015016,3]
[403737439,1769521334138,200.0,0.00015118,2]
[403737447,1769521429443,161.60504584,0.00015243,2]
[403737448,1769521433674,-461.84882242,0.00043378,30]
[403737449,1769521433716,-172.81738598,0.00043378,120]
[403737450,1769521433756,-420.58056579,0.00043378,120]
[403737451,1769521433797,-500.4989789,0.00043378,120]
[403737452,1769521433836,-500.0,0.00043378,120]
[403737453,1769521433874,-500.0,0.00043378,120]
[403737454,1769521433914,-205.41390659,0.00043378,120]
[403737455,1769521433955,-500.0,0.00043378,120]
[403737456,1769521433996,-500.0,0.00043378,120]
[403737457,1769521434046,-500.0,0.00043378,120]
[403737458,1769521434091,-500.0,0.00043378,120]
[403737459,1769521434132,-500.0,0.00043378,120]
[403737460,1769521434173,-500.0,0.00043378,120]
[403737461,1769521434218,-500.0,0.00043378,120]
[403737462,1769521434259,-270.34918973,0.00043378,120]
[403737463,1769521434298,-500.0,0.00043378,120]
[403737464,1769521434335,-500.0,0.00043378,120]
[403737465,1769521434376,-500.0,0.00043378,120]
[403737466,1769521434413,-500.0,0.00043378,120]
[403737467,1769521434452,-500.0,0.00043378,120]
[403737468,1769521434496,-500.0,0.00043378,120]
[403737469,1769521434535,-500.0,0.00043378,120]
[403737470,1769521434576,-500.0,0.00043378,120]
[403737471,1769521434615,-500.0,0.00043378,120]
[403737472,1769521434653,-500.0,0.00043378,120]
[403737473,1769521434691,-500.0,0.00043378,120]
[403737474,1769521434730,-500.0,0.00043378,120]
[403737475,1769521434769,-500.0,0.00043378,120]
[403737476,1769521434812,-500.0,0.00043378,120]
[403737477,1769521434853,-500.0,0.00043378,120]
[403737478,1769521434894,-517.10946653,0.00043378,120]
[403737479,1769521434937,-500.0,0.00043378,120]
[403737480,1769521434980,-500.0,0.00043378,120]
[403737481,1769521435021,-500.0,0.00043378,120]
[403737482,1769521435063,-500.0,0.00043378,120]
[403737483,1769521435105,-500.0,0.00043378,120]
[403737484,1769521435150,-500.0,0.00043378,120]
[403737485,1769521435192,-500.18606472,0.00043378,120]
[403737486,1769521435233,-500.0,0.00043378,120]
[403737487,1769521435273,-500.0,0.00043378,120]
[403737488,1769521435314,-907.91041016,0.00043378,30]
[403737489,1769521435353,-500.0,0.00043378,120]
[403737490,1769521435392,-523.18368338,0.00043378,120]
[403737491,1769521435435,-500.0,0.00043378,120]
[403737492,1769521435475,-500.0,0.00043378,120]
[403737493,1769521435516,-500.0,0.00043378,120]
[403737494,1769521435560,-500.0,0.00043378,120]
[403737495,1769521435600,-500.0,0.00043378,60]
[403737496,1769521435639,-500.0,0.00043378,120]
[403737497,1769521435677,-500.0,0.00043378,60]
[403737498,1769521435716,-333.86219364,0.00043378,120]
[403737499,1769521435756,-500.0,0.00043378,60]
[403737500,1769521435797,-500.0,0.00043378,60]
[403737501,1769521435837,-500.0,0.00043378,60]
[403737502,1769521435878,-500.0,0.00043378,120]
[403737503,1769521435919,-500.0,0.00043378,60]
[403737504,1769521436358,-500.0,0.00043378,60]
[403737505,1769521436403,-500.0,0.00043378,60]
[403737506,1769521436444,-500.0,0.00043378,60]
[403737507,1769521436483,-500.0,0.00043378,60]
[403737508,1769521436522,-500.0,0.00043378,120]
[403737509,1769521436564,-500.0,0.00043378,60]
[403737510,1769521436605,-500.0,0.00043378,60]
[403737511,1769521436647,-500.0,0.00043378,120]
[403737512,1769521436686,-500.0,0.00043378,60]
[403737513,1769521436729,-500.0,0.00043378,120]
[403737514,1769521436767,-500.0,0.00043378,60]
[403737515,1769521436807,-500.0,0.00043378,60]
[403737516,1769521436846,-500.0,0.00043378,60]
[403737517,1769521436888,-500.0,0.00043378,60]
[403737518,1769521436930,-500.0,0.00043378,60]
[403737519,1769521436971,-500.0,0.00043378,60]
[403737520,1769521437010,-360.96089705,0.00043378,120]
[403737521,1769521437050,-500.0,0.00043378,60]
[403737522,1769521437090,-500.0,0.00043378,120]
[403737523,1769521437128,-464.39,0.00043378,60]
[403737524,1769521437168,-500.0,0.00043378,120]
[403737525,1769521437208,-567.79400386,0.00043378,120]
[403737526,1769521437245,-500.0,0.00043378,120]
[403737527,1769521437284,-500.0,0.00043378,120]
[403737528,1769521437322,-503.37430032,0.00043378,120]
[403737529,1769521437357,-500.0,0.00043378,120]
[403737530,1769521437394,-500.0,0.00043378,120]
[403737531,1769521437429,-500.0,0.00043378,120]
[403737532,1769521437465,-500.0,0.00043378,120]
[403737533,1769521437502,-500.0,0.00043378,120]
[403737534,1769521437539,-500.0,0.00043378,120]
[403737535,1769521437578,-500.0,0.00043378,120]
[403737536,1769521437616,-500.0,0.00043378,120]
[403737537,1769521437654,-500.0,0.00043378,120]
[403737538,1769521437696,-500.0,0.00043378,120]
[403737539,1769521437738,-500.0,0.00043378,120]
[403737540,1769521437781,-500.0,0.00043378,120]
[403737541,1769521437823,-500.0,0.00043378,120]
[403737542,1769521437863,-500.0,0.00043378,120]
[403737543,1769521437904,-557.15,0.00043378,120]
[403737544,1769521437944,-500.0,0.00043378,120]
[403737545,1769521437984,-500.0,0.00043378,120]
[403737546,1769521438028,-500.0,0.00043378,120]
[403737547,1769521438070,-159.8,0.00043378,120]
[403737548,1769521438111,-500.0,0.00043378,120]
[403737549,1769521438152,-500.0,0.00043378,120]
[403737550,1769521438196,-500.0,0.00043378,120]
[403737551,1769521438238,-500.0,0.00043378,120]
[403737552,1769521438277,-500.0,0.00043378,120]
[403737553,1769521438314,-500.0,0.00043378,120]
[403737554,1769521438349,-500.0,0.00043378,120]
[403737555,1769521438387,-500.0,0.00043378,120]
[403737556,1769521438422,-500.0,0.00043378,120]
[403737557,1769521438458,-500.0,0.00043378,120]
[403737558,1769521438497,-500.0,0.00043378,120]
[403737559,1769521438543,-500.0,0.00043378,120]
[403737560,1769521438585,-500.0,0.00043378,120]
[403737561,1769521438621,-500.0,0.00043378,120]
[403737562,1769521438658,-500.0,0.00043378,120]
[403737563,1769521438696,-500.0,0.00043378,120]
[403737564,1769521438744,-470.39982457,0.00043378,120]
[403737565,1769521438788,-500.0,0.00043378,120]
[403737566,1769521438828,-500.0,0.00043378,120]
[403737567,1769521438867,-500.0,0.00043378,120]
[403737568,1769521438907,-500.0,0.00043378,120]
[403737569,1769521438946,-517.13091381,0.00043378,120]
[403737570,1769521438985,-500.0,0.00043378,120]
[403737571,1769521439025,-528.06045158,0.00043378,120]
[403737572,1769521439064,-500.0,0.00043378,120]
[403737573,1769521439102,-500.0,0.00043378,120]
[403737574,1769521439141,-500.0,0.00043378,120]